fUST/lending_fUST_20251118
["ID","MTS","AMOUNT","RATE_DAILY","PERIOD"]
[394295615,1763425630479,-500.0,0.00019998,2]
[394295616,1763425630505,-428.08088103,0.00019998,2]
[394295617,1763425630534,-500.0,0.00019998,2]
[394295618,1763425630562,-500.0,0.00019998,2]
[394295619,1763425630591,-500.0,0.00019998,2]
[394295620,1763425630625,-500.0,0.00019998,2]
[394295621,1763425630654,-500.0,0.00019998,2]
[394295622,1763425630683,-543.60245279,0.00019998,2]
[394295623,1763425630712,-500.0,0.00019998,2]
[394295624,1763425630741,-500.0,0.00019998,2]
[394295625,1763425630867,-500.0,0.00019998,2]
[394295626,1763425630900,-500.0,0.00019998,2]
[394295627,1763425630931,-500.0,0.00019998,2]
[394295628,1763425630961,-500.0,0.00019998,2]
[394295629,1763425630983,-166.66,0.00019998,2]
[394295630,1763425631007,-1200.0,0.00019998,2]
[394295631,1763425631029,-13323.67636212,0.00019999,2]
[394295632,1763425637080,-496.02488463,0.000199,2]
[394295662,1763425722030,2156.56598882,0.00038189,30]
[394295666,1763425749100,-2871.49142984,0.000199,2]
[394295667,1763425749134,-500.0,0.00019998,2]
[394295668,1763425749159,-500.0,0.00019998,2]
[394295669,1763425749184,-500.0,0.00019998,2]
[394295670,1763425749208,-605.20770695,0.00019999,2]
[394295671,1763425749230,-53761.95520282,0.0002,7]
[394295672,1763425749253,-210.460982,0.00020187,2]
[394295673,1763425749274,-166.66,0.00020272,2]
[394295674,1763425749296,-500.0,0.00020521,2]
[394295675,1763425749316,-166.68,0.00020546,2]
[394295676,1763425749337,-10233.0,0.00021,2]
[394295677,1763425749358,-38152.68351144,0.00021,2]
[394295678,1763425749379,-177.0,0.00021836,2]
[394295679,1763425749400,-430.7,0.00022,7]
[394295680,1763425749421,-204.0,0.00023836,2]
[394295681,1763425749442,-388.0,0.0002489,3]
[394295682,1763425749463,-20668.9580135,0.000249,2]
[394295683,1763425749571,-184.01336951,0.00025836,2]
[394295684,1763425749594,-1039.7494127,0.00026,7]
[394295685,1763425749621,-210.460982,0.00026676,2]
[394295686,1763425749646,-3367.51631441,0.00029043,2]
[394295687,1763425749668,-208.102,0.00031319,29]
[394295688,1763425749690,-210.460982,0.00033165,2]
[394295689,1763425749711,-539.23947957,0.00034,2]
[394295690,1763425749736,-1729.11,0.0003499,10]
[394295691,1763425749759,-1440.93,0.0003499,10]
[394295692,1763425749781,-175.0,0.00035,120]
[394295693,1763425749801,-9127.71938783,0.00035,2]
[394295694,1763425749822,-10094.30708271,0.00035,14]
[394295695,1763425749843,-267.8092652,0.00035398,2]
[394295696,1763425749863,-999.0,0.0003702,2]
[394295697,1763425749883,-1000.0,0.00038183,20]
[394295698,1763425749905,-3367.51631441,0.00038186,2]
[394295699,1763425749925,-150.0,0.00038356,5]
[394295700,1763425749949,-151.0,0.00038431,120]
[394295701,1763425749970,-151.0,0.00038431,120]
[394295702,1763425749991,-151.0,0.00038431,120]
[394295703,1763425750014,-151.0,0.00038431,120]
[394295704,1763425750036,-151.0,0.00038431,120]
[394295705,1763425750058,-164.38865,0.00038431,120]
[394295706,1763425750080,-164.38865,0.00038431,120]
[394295707,1763425750102,-164.38865,0.00038431,120]
[394295708,1763425750125,-164.38865,0.00038431,120]
[394295721,1763425756041,150.0,0.00031026,2]
[394295722,1763425756590,170.03,0.00033846,2]
[394295723,1763425757015,255.04,0.00036667,2]
[394295724,1763425763179,-163.85043418,0.00039048,2]
[394295725,1763425763201,-250.0,0.00039178,5]
[394295726,1763425763221,-164.710506,0.00039225,2]
[394295727,1763425763244,-340.05,0.00039487,2]
[394295728,1763425763267,-210.460982,0.00039654,2]
[394295729,1763425763286,-151.0,0.00039767,7]
[394295730,1763425763306,-20668.9580135,0.00039767,3]
[394295731,1763425763325,-500.0,0.00039776,30]
[394295732,1763425763345,-500.0,0.00039777,120]
[394295733,1763425763364,-151.0,0.00039777,120]
[394295734,1763425763384,-151.0,0.00039777,120]
[394295735,1763425763404,-151.0,0.00039777,120]
[394295736,1763425763424,-151.0,0.00039777,120]
[394295737,1763425763443,-151.0,0.00039777,120]
[394295738,1763425763464,-151.0,0.00039777,90]
[394295739,1763425763483,-151.0,0.00039777,120]
[394295740,1763425763502,-151.0,0.00039777,120]
[394295741,1763425763521,-151.0,0.00039777,120]
[394295742,1763425763540,-151.0,0.00039777,120]
[394295743,1763425763561,-151.0,0.00039777,120]
[394295744,1763425763579,-151.0,0.00039777,120]
[394295745,1763425763599,-151.0,0.00039777,120]
[394295746,1763425763615,-151.0,0.00039777,120]
[394295747,1763425763639,-151.0,0.00039777,120]
[394295748,1763425763658,-158.034151,0.00039777,120]
[394295749,1763425763679,-151.0,0.00039777,120]
[394295750,1763425763699,-151.0,0.00039777,120]
[394295751,1763425763720,-151.0,0.00039777,120]
[394295752,1763425763740,-151.0,0.00039777,120]
[394295753,1763425763760,-151.0,0.00039777,120]
[394295754,1763425763780,-387.21737924,0.00039777,28]
[394295764,1763425818826,209.40437684,0.00020987,2]
[394295808,1763425831921,-474.34649675,0.00038189,7]
[394295809,1763425831930,-221.38123535,0.00038189,3]
[394295815,1763425836216,150.0,0.00031438,2]
[394295816,1763425836741,150.0,0.00034296,2]
[394295817,1763425837147,220.1,0.00037154,2]
[394295842,1763425838115,-677.42648617,0.00038189,3]
[394295843,1763425838125,-151.0,0.00039767,120]
[394295844,1763425838135,-151.0,0.00039767,120]
[394295845,1763425838145,-151.0,0.00039767,120]
[394295846,1763425838154,-151.0,0.00039767,120]
[394295847,1763425838163,-151.0,0.00039767,120]
[394295848,1763425838172,-151.0,0.00039767,120]
[394295849,1763425838181,-151.0,0.00039767,120]
[394295850,1763425838190,-151.0,0.00039767,120]
[394295851,1763425838199,-151.0,0.00039767,120]
[394295852,1763425838208,-103.15894871,0.00039767,120]
[394295853,1763425838219,-47.84105129,0.00039767,120]
[394295854,1763425838228,-555.74286727,0.00039777,28]
[394295855,1763425838241,-369.70097279,0.00039777,28]
[394295857,1763425838716,-3779.83177382,0.00039777,28]
[394295858,1763425838728,-5200.50236508,0.00039777,28]
[394295859,1763425838741,-10048.51,0.000398,14]
[394295860,1763425838751,-150.98763492,0.000398,120]
[394295861,1763425838763,-0.01236508,0.000398,120]
[394295862,1763425838773,-151.0,0.000398,120]
[394295863,1763425838783,-151.0,0.000398,120]
[394295864,1763425838793,-49.5458611,0.000398,120]
[394295865,1763425838805,-364.5970459,0.000398,120]
[394295866,1763425838814,-414.142907,0.000398,120]
[394295867,1763425838823,-151.0,0.000398,120]
[394295868,1763425838832,-414.142907,0.000398,120]
[394295869,1763425838842,-264.423266,0.000398,120]
[394295870,1763425838851,-414.142907,0.000398,120]
[394295871,1763425838860,-151.0,0.000398,120]
[394295872,1763425838870,-151.0,0.000398,120]
[394295873,1763425838881,-151.0,0.000398,120]
[394295874,1763425838891,-151.0,0.000398,120]
[394295875,1763425838902,-350.0,0.0004,5]
[394295876,1763425838911,-293.47,0.00040012,2]
[394295877,1763425838922,-252.17864383,0.0004039,2]
[394295878,1763425838931,-4963.0,0.000414,120]
[394295879,1763425838941,-366.83,0.0004287,2]
[394295880,1763425838949,-862.81177725,0.00043551,2]
[394295881,1763425838958,-453.92155889,0.00043711,2]
[394295882,1763425838968,-199.0,0.00044109,30]
[394295883,1763425838978,-199.0,0.00045479,30]
[394295884,1763425838987,-672.81288873,0.00045749,2]
[394295885,1763425838997,-500.0,0.00045749,2]
[394295886,1763425839008,-500.0,0.00045749,2]
[394295887,1763425839018,-500.0,0.00045749,2]
[394295888,1763425839028,-500.0,0.00045749,2]
[394295889,1763425839037,-500.0,0.00045749,2]
[394295890,1763425839047,-500.0,0.00045749,2]
[394295891,1763425839056,-250.0,0.00045749,2]
[394295892,1763425839066,-250.0,0.00045749,2]
[394295893,1763425839076,-250.0,0.00045749,2]
[394295894,1763425839086,-250.0,0.00045749,2]
[394295895,1763425839096,-250.0,0.00045749,2]
[394295896,1763425839105,-250.0,0.00045749,2]
[394295897,1763425839114,-1000.0,0.00045749,2]
[394295898,1763425839124,-1000.0,0.00045749,2]
[394295899,1763425839133,-250.0,0.00045749,2]
[394295900,1763425839142,-1000.0,0.00045749,2]
[394295901,1763425839152,-250.0,0.00045749,2]
[394295902,1763425839161,-1000.0,0.00045749,2]
[394295903,1763425839170,-250.0,0.00045749,2]
[394295904,1763425839180,-1000.0,0.00045749,2]
[394295905,1763425839189,-250.0,0.00045749,2]
[394295906,1763425839198,-1000.0,0.00045749,2]
[394295907,1763425839208,-250.0,0.00045749,2]
[394295908,1763425839217,-1000.0,0.00045749,2]
[394295909,1763425839226,-1000.0,0.00045749,2]
[394295910,1763425839236,-1000.0,0.00045749,2]
[394295911,1763425839246,-1000.0,0.00045749,2]
[394295912,1763425839255,-809.34359377,0.00045749,2]
[394295913,1763425839266,-1000.0,0.000458,120]
[394295914,1763425839276,-210.460982,0.00046143,2]
[394295915,1763425839286,-2047.86309348,0.00046178,2]
[394295916,1763425839296,-1261.11,0.0004648,10]
[394295917,1763425839305,-20322.51210381,0.0004649,4]
[394295918,1763425839317,-21015.40392329,0.0004649,4]
[394295919,1763425839326,-249.362024,0.0004649,7]
[394295920,1763425839335,-151.0,0.0004649,120]
[394295921,1763425839344,-151.0,0.0004649,120]
[394295922,1763425839353,-211.200329,0.0004649,120]
[394295923,1763425839363,-151.0,0.0004649,120]
[394295924,1763425839373,-163.550409,0.0004649,120]
[394295925,1763425839382,-2179.2,0.0004649,10]
[394295926,1763425839392,-151.0,0.0004649,120]
[394295927,1763425839401,-151.0,0.0004649,120]
[394295928,1763425839411,-1816.0,0.0004649,10]
[394295929,1763425839420,-151.0,0.0004649,120]
[394295930,1763425839430,-214.2184,0.0004649,120]
[394295931,1763425839439,-1513.33,0.0004649,10]
[394295932,1763425839448,-22379.2439331,0.000465,30]
[394295933,1763425839463,-794.0512496,0.000465,30]
[394295955,1763425840067,-440.2,0.00045728,2]
[394295957,1763425840079,-1306.50365617,0.000465,30]
[394296303,1763425844027,-1792.32379251,0.000465,30]
[394296304,1763425844041,-5015.67373505,0.000465,30]
[394296305,1763425844062,-530.0727769,0.000465,30]
[394296306,1763425844164,519.31704438,0.00019999,2]
[394296307,1763425844236,2981.7,0.00038189,20]
[394296444,1763425851521,500.0,0.00019999,2]
[394296445,1763425851652,500.0,0.00019999,2]
[394296446,1763425851681,452.09746682,0.00019999,2]
[394296447,1763425855423,413.88883582,0.00029042,2]
[394296451,1763425859431,500.0,0.00019999,2]
[394296452,1763425859458,246.03639301,0.00019999,2]
[394296453,1763425859524,500.0,0.00019999,2]
[394296455,1763425866646,548.60333499,0.00019999,2]
[394296456,1763425866684,548.60333499,0.00019999,2]
[394296457,1763425866715,548.60333499,0.00019999,2]
[394296458,1763425866746,548.60333499,0.00019999,2]
[394296459,1763425866787,548.60333499,0.00019999,2]
[394296460,1763425866817,548.60333499,0.00019999,2]
[394296461,1763425866848,548.60333499,0.00019999,2]
[394296462,1763425866883,548.60333499,0.00019999,2]
[394296463,1763425866915,548.60333499,0.00019999,2]
[394296464,1763425866944,548.60333499,0.00019999,2]
[394296465,1763425866975,243.98412798,0.00019999,2]
[394296466,1763425867001,304.61920701,0.00019999,2]
[394296467,1763425867039,548.60333499,0.00019999,2]
[394296468,1763425867068,548.60333499,0.00019999,2]
[394296469,1763425867096,548.60333499,0.00019999,2]
[394296470,1763425867133,548.60333499,0.00019999,2]
[394296471,1763425867160,548.60333499,0.00019999,2]
[394296472,1763425867191,548.60333499,0.00019999,2]
[394296473,1763425867221,548.60333499,0.00019999,2]
[394296474,1763425867252,548.60333499,0.00019999,2]
[394296475,1763425867282,548.60333499,0.00019999,2]
[394296476,1763425867319,548.60333499,0.00019999,2]
[394296477,1763425867352,548.60333499,0.00019999,2]
[394296478,1763425867420,548.60333499,0.00019999,2]
[394296479,1763425867451,548.60333499,0.00019999,2]
[394296480,1763425867506,548.60333499,0.00019999,2]
[394296481,1763425867543,548.60333499,0.00019999,2]
[394296482,1763425867575,548.60333499,0.00019999,2]
[394296483,1763425867608,548.60333499,0.00019999,2]
[394296484,1763425867648,548.60333499,0.00019999,2]
[394296485,1763425867681,548.60333499,0.00019999,2]
[394296486,1763425867713,548.60333499,0.00019999,2]
[394296487,1763425867905,548.60333499,0.00019999,2]
[394296488,1763425867936,548.60333499,0.00019999,2]
[394296489,1763425867967,548.60333499,0.00019999,2]
[394296490,1763425867999,548.60333499,0.00019999,2]
[394296491,1763425868030,548.60333499,0.00019999,2]
[394296492,1763425868069,135.09258139,0.00019999,2]
[394296493,1763425868098,180.00907485,0.00019999,2]
[394296494,1763425868127,233.50167875,0.00019999,2]
[394296495,1763425868162,548.60333499,0.00019999,2]
[394296496,1763425868309,548.60333499,0.00019999,2]
[394296497,1763425868350,548.60333499,0.00019999,2]
[394296498,1763425868384,548.60333499,0.00019999,2]
[394296499,1763425868412,548.60333499,0.00019999,2]
[394296500,1763425868447,548.60333499,0.00019999,2]
[394296501,1763425868479,548.60333499,0.00019999,2]
[394296502,1763425868509,548.60333499,0.00019999,2]
[394296503,1763425868553,548.60333499,0.00019999,2]
[394296504,1763425868641,548.60333499,0.00019999,2]
[394296505,1763425868676,548.60333499,0.00019999,2]
[394296506,1763425868709,548.60333499,0.00019999,2]
[394296507,1763425868739,548.60333499,0.00019999,2]
[394296508,1763425868805,548.60333499,0.00019999,2]
[394296509,1763425878904,548.60333499,0.00019999,2]
[394296510,1763425878938,548.60333499,0.00019999,2]
[394296511,1763425878964,548.60333499,0.00019999,2]
[394296512,1763425878992,548.60333499,0.00019999,2]
[394296513,1763425879028,548.60333499,0.00019999,2]
[394296514,1763425879057,548.60333499,0.00019999,2]
[394296515,1763425879087,82.62374924,0.00019999,2]
[394296531,1763426027313,5000.0,0.000195,2]
[394296532,1763426042348,174.78,0.0001,2]
[394296533,1763426042672,174.78,0.000112,2]
[394296534,1763426042923,174.78,0.000125,2]
[394296540,1763426136563,5000.0,0.000195,2]
[394296541,1763426152080,5000.0,0.000195,2]
[394296542,1763426157753,-150.0,0.00019898,2]
[394296543,1763426157785,-300.0,0.00019997,2]
[394296544,1763426157805,-300.0,0.00019997,2]
[394296545,1763426157829,-147.15275419,0.00019997,2]
[394296546,1763426160690,-166.0,0.00019699,2]
[394296547,1763426161587,154.63,0.0001,2]
[394296548,1763426161891,154.63,0.000102,2]
[394296549,1763426162177,154.63,0.000104,2]
[394296550,1763426162459,154.63,0.000106,2]
[394296551,1763426162743,154.63,0.000108,2]
[394296552,1763426163022,154.63,0.00011,2]
[394296553,1763426163412,154.63,0.000112,2]
[394296554,1763426163727,154.63,0.000114,2]
[394296555,1763426164043,154.63,0.000116,2]
[394296556,1763426164323,154.63,0.000118,2]
[394296557,1763426164631,154.63,0.00012,2]
[394296558,1763426164921,154.63,0.000122,2]
[394296559,1763426165239,154.63,0.000125,2]
[394296560,1763426168478,166.0,0.000195,2]
[394296561,1763426176315,4925.98795693,0.000195,2]
[394296562,1763426191731,1025.35932176,0.000195,2]
[394296563,1763426221575,284.45,0.0001,2]
[394296564,1763426221876,284.45,0.000101,2]
[394296565,1763426222183,284.45,0.000101,2]
[394296566,1763426223115,284.31173931,0.000102,2]
[394296567,1763426223142,0.13826069,0.000102,2]
[394296568,1763426223654,284.45,0.000102,2]
[394296569,1763426223952,284.45,0.000103,2]
[394296570,1763426224276,284.45,0.000103,2]
[394296571,1763426225230,284.45,0.000104,2]
[394296572,1763426225540,284.45,0.000104,2]
[394296573,1763426225847,284.45,0.000105,2]
[394296574,1763426226137,284.45,0.000105,2]
[394296575,1763426226423,284.45,0.000106,2]
[394296576,1763426226705,284.45,0.000106,2]
[394296577,1763426227005,284.45,0.000107,2]
[394296578,1763426227434,284.45,0.000107,2]
[394296579,1763426227787,284.45,0.000108,2]
[394296580,1763426228149,284.45,0.000108,2]
[394296581,1763426228433,284.45,0.000109,2]
[394296582,1763426228704,284.45,0.000109,2]
[394296583,1763426229018,284.45,0.00011,2]
[394296584,1763426229255,284.45,0.00011,2]
[394296585,1763426230219,284.45,0.000111,2]
[394296586,1763426230611,284.45,0.000111,2]
[394296587,1763426230934,284.45,0.000112,2]
[394296588,1763426231220,284.45,0.000112,2]
[394296589,1763426231491,284.45,0.000113,2]
[394296590,1763426231766,284.45,0.000113,2]
[394296591,1763426232051,284.45,0.000114,2]
[394296592,1763426232328,284.45,0.000114,2]
[394296593,1763426232636,284.45,0.000115,2]
[394296594,1763426232934,284.45,0.000115,2]
[394296595,1763426233220,284.45,0.000116,2]
[394296596,1763426233516,284.45,0.000116,2]
[394296597,1763426233803,284.45,0.000117,2]
[394296598,1763426234185,284.45,0.000117,2]
[394296599,1763426234538,284.45,0.000118,2]
[394296600,1763426234905,284.45,0.000118,2]
[394296601,1763426235213,284.45,0.000119,2]
[394296602,1763426235488,284.45,0.000119,2]
[394296603,1763426235760,284.45,0.00012,2]
[394296604,1763426236098,284.45,0.00012,2]
[394296605,1763426236432,284.45,0.000121,2]
[394296606,1763426236798,284.45,0.000121,2]
[394296607,1763426236994,284.45,0.000122,2]
[394296608,1763426237616,151.0,0.00038183,120]
[394296609,1763426237967,284.45,0.000122,2]
[394296610,1763426237995,159.222321,0.00038183,120]
[394296611,1763426238251,284.45,0.000123,2]
[394296612,1763426238532,284.45,0.000123,2]
[394296613,1763426238819,284.45,0.000124,2]
[394296614,1763426239280,284.45,0.000124,2]
[394296618,1763426246849,151.0,0.00038183,120]
[394296619,1763426247141,151.0,0.00038183,120]
[394296620,1763426248278,151.0,0.00038183,120]
[394296621,1763426248580,151.0,0.00038183,120]
[394296622,1763426248901,151.0,0.00038183,120]
[394296623,1763426253405,331.314326,0.00038183,120]
[394296624,1763426253727,331.314326,0.00038183,120]
[394296625,1763426254037,331.314326,0.00038183,120]
[394296626,1763426254425,331.314326,0.00038183,120]
[394296627,1763426254706,331.314326,0.00038183,120]
[394296628,1763426255007,331.314326,0.00038183,120]
[394296629,1763426255309,331.314326,0.00038183,120]
[394296630,1763426255630,331.314326,0.00038183,120]
[394296631,1763426256028,331.314326,0.00038183,120]
[394296632,1763426256323,331.314326,0.00038183,120]
[394296633,1763426257193,331.314326,0.00038183,120]
[394296634,1763426257562,331.314326,0.00038203,120]
[394296635,1763426257936,331.314326,0.00038203,120]
[394296636,1763426258291,331.314326,0.00038203,120]
[394296637,1763426258605,331.314326,0.00038203,120]
[394296638,1763426258925,331.314326,0.00038203,120]
[394296639,1763426259232,331.314326,0.00038203,120]
[394296640,1763426259579,331.314326,0.00038203,120]
[394296641,1763426259893,331.314326,0.00038203,120]
[394296642,1763426260755,331.31432377,0.00038203,120]
[394296643,1763426281657,152.28,0.0001,2]
[394296644,1763426281920,152.28,0.000101,2]
[394296645,1763426282210,152.28,0.000102,2]
[394296646,1763426282525,152.28,0.000103,2]
[394296647,1763426282850,152.28,0.000104,2]
[394296648,1763426283198,152.28,0.000105,2]
[394296649,1763426283540,152.28,0.000105,2]
[394296650,1763426283851,152.28,0.000106,2]
[394296651,1763426284185,152.28,0.000107,2]
[394296652,1763426284575,152.28,0.000108,2]
[394296653,1763426284858,152.28,0.000109,2]
[394296654,1763426285138,152.28,0.00011,2]
[394296655,1763426285465,152.28,0.000111,2]
[394296656,1763426285743,152.28,0.000112,2]
[394296657,1763426286024,152.28,0.000113,2]
[394296658,1763426286321,152.28,0.000114,2]
[394296659,1763426286602,152.28,0.000115,2]
[394296660,1763426286914,152.28,0.000115,2]
[394296661,1763426287347,152.28,0.000116,2]
[394296662,1763426287781,152.28,0.000117,2]
[394296663,1763426288105,152.28,0.000118,2]
[394296664,1763426288392,152.28,0.000119,2]
[394296665,1763426288676,152.28,0.00012,2]
[394296666,1763426288962,152.28,0.000121,2]
[394296667,1763426289234,152.28,0.000122,2]
[394296668,1763426289624,152.28,0.000123,2]
[394296669,1763426289966,152.28,0.000124,2]
[394296670,1763426309696,151.0,0.00038203,120]
[394296671,1763426310085,151.0,0.00038203,120]
[394296672,1763426310384,151.0,0.00038203,120]
[394296673,1763426310770,226.648516,0.00038203,120]
[394296674,1763426341662,152.2,0.0001,2]
[394296675,1763426407867,151.0,0.00038203,120]
[394296676,1763426408260,151.0,0.00038203,120]
[394296677,1763426408576,151.0,0.00038203,120]
[394296678,1763426408957,151.0,0.00038203,120]
[394296679,1763426409855,151.0,0.00038203,120]
[394296680,1763426410150,151.0,0.00038203,120]
[394296681,1763426410458,151.0,0.00038203,120]
[394296682,1763426410769,151.0,0.00038203,120]
[394296683,1763426411649,151.0,0.00038203,120]
[394296686,1763426432685,301.992853,0.00038203,120]
[394296688,1763426461745,160.35,0.0001,2]
[394296689,1763426462793,160.35,0.000102,2]
[394296690,1763426463157,160.35,0.000104,2]
[394296691,1763426463445,160.35,0.000106,2]
[394296692,1763426463768,160.35,0.000108,2]
[394296693,1763426464076,160.35,0.000109,2]
[394296694,1763426464385,160.35,0.000111,2]
[394296695,1763426464670,160.35,0.000113,2]
[394296696,1763426464984,160.35,0.000115,2]
[394296698,1763426465297,160.35,0.000117,2]
[394296700,1763426465581,160.35,0.000119,2]
[394296702,1763426465874,160.35,0.000121,2]
[394296703,1763426466162,160.35,0.000123,2]
[394296704,1763426466437,160.35,0.000125,2]
[394296705,1763426491807,159.128561,0.00038203,120]
[394296706,1763426521562,151.34,0.0001,2]
[394296707,1763426521857,151.34,0.000101,2]
[394296708,1763426522178,151.34,0.000101,2]
[394296709,1763426522586,151.34,0.000102,2]
[394296710,1763426522887,151.34,0.000102,2]
[394296711,1763426523395,151.34,0.000103,2]
[394296712,1763426524458,151.34,0.000104,2]
[394296713,1763426524733,151.34,0.000104,2]
[394296714,1763426525050,151.34,0.000105,2]
[394296715,1763426525603,151.34,0.000106,2]
[394296716,1763426525902,151.34,0.000106,2]
[394296717,1763426526216,151.34,0.000107,2]
[394296718,1763426526543,151.34,0.000107,2]
[394296719,1763426526900,151.34,0.000108,2]
[394296720,1763426527186,151.34,0.000109,2]
[394296721,1763426527516,151.34,0.000109,2]
[394296722,1763426527802,151.34,0.00011,2]
[394296723,1763426528187,151.34,0.00011,2]
[394296724,1763426528482,151.34,0.000111,2]
[394296725,1763426528777,151.34,0.000112,2]
[394296726,1763426529065,151.34,0.000112,2]
[394296727,1763426529346,151.34,0.000113,2]
[394296728,1763426529644,151.34,0.000113,2]
[394296729,1763426530026,151.34,0.000114,2]
[394296730,1763426530308,151.34,0.000115,2]
[394296731,1763426530594,151.34,0.000115,2]
[394296732,1763426530952,151.34,0.000116,2]
[394296733,1763426531317,151.34,0.000117,2]
[394296734,1763426531603,151.34,0.000117,2]
[394296735,1763426531961,151.34,0.000118,2]
[394296736,1763426532250,151.34,0.000118,2]
[394296737,1763426532519,151.34,0.000119,2]
[394296738,1763426532800,151.34,0.00012,2]
[394296739,1763426533275,151.34,0.00012,2]
[394296740,1763426533570,151.34,0.000121,2]
[394296741,1763426533876,151.34,0.000121,2]
[394296742,1763426534157,151.34,0.000122,2]
[394296743,1763426534432,91.37173931,0.000123,2]
[394296744,1763426534464,59.96826069,0.000123,2]
[394296745,1763426534727,151.34,0.000123,2]
[394296746,1763426535002,151.34,0.000124,2]
[394296747,1763426535276,151.34,0.000125,2]
[394296749,1763426746144,-359.25759851,0.0001921,2]
[394296781,1763426804092,-4575.70306349,0.0001921,2]
[394296808,1763426829130,-65.039338,0.0001921,2]
[394296810,1763426829152,-142.29480312,0.000193,2]
[394296972,1763426852191,-571.32095214,0.00018916,2]
[394296979,1763426854123,-4046.34704663,0.00018916,2]
[394296980,1763426854143,-510.37389336,0.00019107,2]
[394297046,1763426945097,-4489.62610664,0.00019107,2]
[394297047,1763426945117,-668.02753844,0.000193,2]
[394297048,1763426945137,-150.0,0.00019502,2]
[394297049,1763426945160,-47.27379852,0.00021502,2]
[394297050,1763426945187,-129.72620148,0.00021502,2]
[394297051,1763426945206,-151.04356168,0.0002254,2]
[394297052,1763426945226,-204.0,0.00023502,2]
[394297053,1763426945246,-300.0,0.00023671,2]
[394297054,1763426945266,-500.0,0.00023672,2]
[394297055,1763426945289,-500.0,0.00023672,2]
[394297056,1763426945309,-500.0,0.00023672,2]
[394297057,1763426945330,-500.0,0.00023672,2]
[394297058,1763426945351,-368.49657246,0.00023672,2]
[394297059,1763426945374,-500.0,0.00023672,2]
[394297060,1763426945399,-500.0,0.00023672,2]
[394297061,1763426945423,-500.0,0.00023672,2]
[394297062,1763426945446,-500.0,0.00023672,2]
[394297063,1763426945471,-649.69892706,0.00023672,2]
[394297064,1763426945492,-252.67373373,0.00023672,2]
[394297065,1763426945517,-500.0,0.00023672,2]
[394297066,1763426945539,-500.0,0.00023672,2]
[394297067,1763426945561,-216.22403853,0.00023672,2]